fUST/lending_fUST_20241125
["ID","MTS","AMOUNT","RATE_DAILY","PERIOD"]
[343244194,1732528240050,-500.0,0.00023747,2]
[343244195,1732528240059,-500.0,0.00023747,2]
[343244196,1732528240070,-500.0,0.00023747,2]
[343244197,1732528240079,-500.0,0.00023747,2]
[343244198,1732528240089,-500.0,0.00023747,2]
[343244199,1732528240098,-500.0,0.00023747,2]
[343244200,1732528240107,-500.0,0.00023747,2]
[343244201,1732528240119,-500.0,0.00023747,2]
[343244202,1732528240128,-529.9194532,0.00023747,2]
[343244203,1732528240137,-500.0,0.00023747,2]
[343244204,1732528240147,-500.0,0.00023747,2]
[343244205,1732528240157,-151.0,0.00023747,7]
[343244206,1732528240166,-500.0,0.00023747,2]
[343244207,1732528240175,-500.0,0.00023747,2]
[343244208,1732528240184,-500.0,0.00023747,2]
[343244209,1732528240194,-2264.53,0.00023798,2]
[343244210,1732528240203,-1681.43,0.00023798,2]
[343244211,1732528240213,-528.45,0.00023798,2]
[343244212,1732528240223,-500.0,0.00023798,2]
[343244213,1732528240232,-507.87,0.00023802,10]
[343244214,1732528240243,-370.0,0.00023836,2]
[343244215,1732528240252,-1454.0591769,0.0002401,2]
[343244216,1732528240262,-500.0,0.00024019,2]
[343244217,1732528240274,-4593.46113519,0.00024019,2]
[343244218,1732528240291,-200.39417888,0.00021554,2]
[343244219,1732528240301,-4206.83886481,0.00024019,2]
[343244220,1732528240313,-500.0,0.00024019,2]
[343244221,1732528240323,-500.0,0.00024019,2]
[343244222,1732528240333,-500.0,0.00024019,2]
[343244223,1732528240342,-500.0,0.00024019,2]
[343244224,1732528240352,-500.0,0.00024019,2]
[343244225,1732528240362,-500.0,0.00024019,2]
[343244226,1732528240372,-500.0,0.00024019,2]
[343244227,1732528240382,-500.0,0.00024019,2]
[343244228,1732528240391,-500.0,0.00024019,2]
[343244229,1732528240401,-500.0,0.00024021,2]
[343244230,1732528240410,-500.0,0.00024021,2]
[343244231,1732528240419,-500.0,0.00024021,2]
[343244232,1732528240428,-534.87,0.00024021,2]
[343244233,1732528240438,-500.0,0.00024021,2]
[343244234,1732528240447,-500.0,0.00024021,2]
[343244235,1732528240456,-500.0,0.00024021,2]
[343244236,1732528240465,-500.0,0.00024021,2]
[343244237,1732528240475,-500.0,0.00024021,2]
[343244238,1732528240484,-500.0,0.00024021,2]
[343244239,1732528240494,-500.0,0.00024021,2]
[343244240,1732528240503,-500.0,0.00024021,2]
[343244241,1732528240512,-500.0,0.00024021,2]
[343244242,1732528240521,-500.0,0.00024021,2]
[343244243,1732528240530,-500.0,0.00024021,2]
[343244244,1732528240539,-500.0,0.00024021,2]
[343244245,1732528240549,-500.0,0.00024021,2]
[343244246,1732528240558,-500.0,0.00024021,2]
[343244247,1732528240573,-500.0,0.00024021,2]
[343244248,1732528240583,-500.0,0.00024021,2]
[343244249,1732528240592,-500.0,0.00024021,2]
[343244250,1732528240602,-500.0,0.00024021,2]
[343244251,1732528240611,-500.0,0.00024021,2]
[343244252,1732528240621,-500.0,0.00024021,2]
[343244253,1732528240630,-500.0,0.00024021,2]
[343244254,1732528240640,-500.0,0.00024021,2]
[343244255,1732528240650,-500.0,0.00024021,2]
[343244256,1732528240659,-500.0,0.00024021,2]
[343244257,1732528240721,-500.0,0.00024021,2]
[343244258,1732528240737,-500.0,0.00024021,2]
[343244259,1732528240747,-2264.53,0.00024072,2]
[343244260,1732528240758,-1681.43,0.00024072,2]
[343244261,1732528240768,-528.45,0.00024072,2]
[343244262,1732528240778,-156.81,0.00024072,2]
[343244263,1732528240788,-587.0,0.00024079,2]
[343244264,1732528240798,-370.0,0.0002411,2]
[343244265,1732528240809,-370.0,0.00024164,2]
[343244266,1732528240821,-161.0,0.00024164,2]
[343244267,1732528240830,-1404.33842731,0.00024205,2]
[343244268,1732528240839,-500.0,0.00024293,2]
[343244269,1732528240849,-8800.3,0.00024293,2]
[343244270,1732528240858,-500.0,0.00024293,2]
[343244271,1732528240867,-500.0,0.00024293,2]
[343244272,1732528240876,-500.0,0.00024293,2]
[343244273,1732528240886,-500.0,0.00024293,2]
[343244274,1732528240895,-500.0,0.00024293,2]
[343244275,1732528240905,-500.0,0.00024293,2]
[343244276,1732528240915,-500.0,0.00024293,2]
[343244277,1732528240924,-500.0,0.00024293,2]
[343244278,1732528240934,-500.0,0.00024293,2]
[343244279,1732528240944,-500.0,0.00024295,2]
[343244280,1732528240954,-500.0,0.00024295,2]
[343244281,1732528240964,-500.0,0.00024295,2]
[343244282,1732528240973,-534.87,0.00024295,2]
[343244283,1732528240982,-500.0,0.00024295,2]
[343244284,1732528240991,-500.0,0.00024295,2]
[343244285,1732528241001,-500.0,0.00024295,2]
[343244286,1732528241010,-500.0,0.00024295,2]
[343244287,1732528241020,-500.0,0.00024295,2]
[343244288,1732528241029,-500.0,0.00024295,2]
[343244289,1732528241038,-500.0,0.00024295,2]
[343244290,1732528241048,-500.0,0.00024295,2]
[343244291,1732528241058,-500.0,0.00024295,2]
[343244292,1732528241070,-500.0,0.00024295,2]
[343244293,1732528241080,-627.73973967,0.00024295,2]
[343244294,1732528241089,-500.0,0.00024295,2]
[343244295,1732528241098,-500.0,0.00024295,2]
[343244296,1732528241107,-500.0,0.00024295,2]
[343244297,1732528241117,-500.0,0.00024295,2]
[343244298,1732528241127,-500.0,0.00024295,2]
[343244299,1732528241137,-500.0,0.00024295,2]
[343244300,1732528241147,-508.38587082,0.00024295,2]
[343244301,1732528241158,-500.0,0.00024295,2]
[343244302,1732528241168,-500.0,0.00024295,2]
[343244303,1732528241178,-500.0,0.00024295,2]
[343244304,1732528241189,-540.91082678,0.00024295,2]
[343244305,1732528241198,-519.83237245,0.00024295,2]
[343244306,1732528241208,-500.0,0.00024295,2]
[343244307,1732528241218,-505.65360569,0.00024295,2]
[343244308,1732528241227,-151.0,0.00024295,7]
[343244309,1732528241236,-515.94286304,0.00024295,2]
[343244310,1732528241246,-2264.53,0.00024346,2]
[343244311,1732528241255,-1681.43,0.00024346,2]
[343244312,1732528241264,-528.45,0.00024346,2]
[343244313,1732528241274,-1454.05917681,0.00024553,2]
[343244314,1732528241284,-500.0,0.00024567,2]
[343244315,1732528241294,-8800.3,0.00024567,2]
[343244316,1732528241303,-500.0,0.00024567,2]
[343244317,1732528241313,-500.0,0.00024567,2]
[343244318,1732528241323,-500.0,0.00024567,2]
[343244319,1732528241332,-500.0,0.00024569,2]
[343244320,1732528241342,-500.0,0.00024569,2]
[343244321,1732528241351,-500.0,0.00024569,2]
[343244322,1732528241361,-534.87,0.00024569,2]
[343244323,1732528241371,-547.72066669,0.00024569,2]
[343244324,1732528241381,-416.58706198,0.00024569,2]
[343244325,1732528241390,-500.0,0.00024569,2]
[343244326,1732528241400,-500.0,0.00024569,2]
[343244327,1732528241409,-500.0,0.00024569,2]
[343244328,1732528241418,-584.27281459,0.00024569,2]
[343244329,1732528241428,-500.0,0.00024569,2]
[343244330,1732528241438,-500.0,0.00024569,2]
[343244331,1732528241447,-500.0,0.00024569,2]
[343244332,1732528241457,-500.0,0.00024569,2]
[343244333,1732528241466,-500.0,0.00024569,2]
[343244334,1732528241475,-500.0,0.00024569,2]
[343244335,1732528241485,-516.19,0.00024569,2]
[343244336,1732528241494,-646.35523078,0.00024569,2]
[343244337,1732528241504,-500.0,0.00024569,2]
[343244338,1732528241513,-500.0,0.00024569,2]
[343244339,1732528241523,-500.0,0.00024569,2]
[343244340,1732528241532,-500.0,0.00024569,2]
[343244341,1732528241541,-643.11110704,0.00024569,2]
[343244342,1732528241550,-2264.53,0.0002462,2]
[343244343,1732528241560,-1681.43,0.0002462,2]
[343244344,1732528241571,-528.45,0.0002462,2]
[343244345,1732528241581,-198.0918699,0.00024658,2]
[343244346,1732528241591,-380.70253596,0.00024691,2]
[343244347,1732528241601,-33915.16,0.000247,2]
[343244348,1732528241611,-500.24438414,0.00024747,2]
[343244349,1732528241620,-500.27118793,0.00024747,2]
[343244350,1732528241629,-500.0,0.00024841,2]
[343244351,1732528241638,-8800.3,0.00024841,2]
[343244352,1732528241647,-500.0,0.00024841,2]
[343244353,1732528241657,-500.0,0.00024841,2]
[343244354,1732528241667,-151.0,0.00024841,7]
[343244355,1732528241678,-190.47,0.00024841,2]
[343244356,1732528241688,-500.0,0.00024843,2]
[343244357,1732528241698,-500.0,0.00024843,2]
[343244358,1732528241707,-500.0,0.00024843,2]
[343244359,1732528241717,-534.87,0.00024843,2]
[343244360,1732528241728,-232.31507391,0.00024843,2]
[343244361,1732528241741,-260.56874114,0.00024843,2]
[343244362,1732528241750,-500.0,0.00024843,2]
[343244363,1732528241759,-500.0,0.00024843,2]
[343244364,1732528241770,-174.80724864,0.00024843,2]
[343244365,1732528241779,-500.0,0.00024843,2]
[343244366,1732528241789,-385.71,0.00024843,2]
[343244367,1732528241800,-500.0,0.00024843,2]
[343244368,1732528241810,-500.0,0.00024843,2]
[343244369,1732528241821,-500.0,0.00024843,2]
[343244370,1732528241830,-500.0,0.00024843,2]
[343244371,1732528241840,-381.65779964,0.00024843,2]
[343244372,1732528241849,-285.40816427,0.00024843,2]
[343244373,1732528241914,-501.06172841,0.00024884,2]
[343244374,1732528241924,-259.01705037,0.00024884,2]
[343244375,1732528241933,-2264.53,0.00024894,2]
[343244376,1732528241943,-1681.43,0.00024894,2]
[343244377,1732528241952,-528.45,0.00024894,2]
[343244378,1732528241962,-160.04042246,0.00024921,2]
[343244379,1732528241972,-1502.32,0.00024937,2]
[343244380,1732528241981,-1200.67,0.00024937,2]
[343244381,1732528241991,-500.0,0.0002494,7]
[343244382,1732528242000,-388.0,0.00025,2]
[343244383,1732528242010,-500.0,0.00025092,2]
[343244384,1732528242019,-500.0,0.00025092,2]
[343244385,1732528242029,-500.0,0.00025092,2]
[343244386,1732528242039,-1454.05917681,0.00025096,2]
[343244387,1732528242048,-500.0,0.00025115,2]
[343244388,1732528242058,-8800.3,0.00025115,2]
[343244389,1732528242070,-500.0,0.00025115,2]
[343244390,1732528242080,-500.0,0.00025115,2]
[343244391,1732528242089,-500.0,0.00025117,2]
[343244392,1732528242099,-500.0,0.00025117,2]
[343244393,1732528242108,-500.0,0.00025117,2]
[343244394,1732528242118,-534.87,0.00025117,2]
[343244395,1732528242128,-500.0,0.00025117,2]
[343244396,1732528242138,-500.0,0.00025117,2]
[343244397,1732528242148,-500.0,0.00025117,2]
[343244398,1732528242158,-500.0,0.00025117,2]
[343244399,1732528242168,-187.5,0.00025117,2]
[343244400,1732528242177,-500.0,0.00025117,2]
[343244401,1732528242188,-369.51290105,0.00025117,2]
[343244402,1732528242197,-500.85093928,0.00025133,2]
[343244403,1732528242207,-564.16281913,0.00025133,2]
[343244404,1732528242217,-2264.53,0.00025168,2]
[343244405,1732528242227,-1681.43,0.00025168,2]
[343244406,1732528242237,-528.45,0.00025168,2]
[343244407,1732528242247,-1502.32,0.00025211,2]
[343244408,1732528242257,-1200.67,0.00025211,2]
[343244409,1732528242266,-160.04042246,0.00025242,2]
[343244410,1732528242276,-500.0,0.00025242,2]
[343244411,1732528242286,-527.82628443,0.00025242,2]
[343244412,1732528242295,-370.0,0.00025373,2]
[343244413,1732528242305,-377.0,0.00025373,2]
[343244414,1732528242318,-1404.33842731,0.00025378,2]
[343244415,1732528242327,-500.0,0.00025389,2]
[343244416,1732528242337,-8800.3,0.00025389,2]
[343244417,1732528242346,-500.0,0.00025389,2]
[343244418,1732528242355,-201.92,0.00025389,2]
[343244419,1732528242364,-500.0,0.00025391,2]
[343244420,1732528242374,-500.0,0.00025391,2]
[343244421,1732528242384,-500.0,0.00025391,2]
[343244423,1732528242393,-534.87,0.00025391,2]
[343244425,1732528242402,-500.0,0.00025391,2]
[343244426,1732528242411,-500.0,0.00025391,2]
[343244428,1732528242421,-500.0,0.00025391,2]
[343244430,1732528242430,-500.0,0.00025391,2]
[343244431,1732528242440,-500.0,0.00025391,2]
[343244432,1732528242449,-1000.0,0.0002541,5]
[343244433,1732528242459,-501.38641686,0.0002541,2]
[343244434,1732528242469,-503.83550965,0.0002541,2]
[343244435,1732528242479,-500.0,0.0002541,2]
[343244436,1732528242489,-1076.25,0.0002541,2]
[343244437,1732528242499,-500.0,0.0002541,2]
[343244438,1732528242509,-637.45,0.0002541,2]
[343244439,1732528242519,-500.0,0.0002541,2]
[343244440,1732528242528,-2264.53,0.00025442,2]
[343244441,1732528242538,-1681.43,0.00025442,2]
[343244442,1732528242548,-528.45,0.00025442,2]
[343244443,1732528242558,-1502.32,0.00025485,2]
[343244444,1732528242571,-1200.67,0.00025485,2]
[343244446,1732528242580,-1454.05917681,0.00025638,2]
[343244447,1732528242590,-500.0,0.0002564,2]
[343244449,1732528242600,-500.0,0.00025663,2]
[343244450,1732528242609,-8800.3,0.00025663,2]
[343244452,1732528242618,-500.0,0.00025663,2]
[343244454,1732528242628,-151.0,0.00025663,7]
[343244456,1732528242638,-500.0,0.00025665,2]
[343244458,1732528242647,-305.95817964,0.00025665,2]
[343244459,1732528242657,-615.04547366,0.00025665,2]
[343244460,1732528242666,-534.87,0.00025665,2]
[343244461,1732528242676,-500.0,0.00025665,2]
[343244462,1732528242686,-500.0,0.00025665,2]
[343244463,1732528242695,-217.29262617,0.00025665,2]
[343244464,1732528242705,-500.0,0.00025665,2]
[343244465,1732528242714,-168.61,0.00025665,2]
[343244466,1732528242728,-1003.91480103,0.00025684,5]
[343244467,1732528242737,-500.0,0.00025684,2]
[343244468,1732528242747,-1076.25,0.00025684,2]
[343244469,1732528242756,-500.0,0.00025684,2]
[343244470,1732528242767,-637.45,0.00025684,2]
[343244471,1732528242777,-500.0,0.00025684,2]
[343244472,1732528242786,-300.0,0.000257,2]
[343244474,1732528242796,-2264.53,0.00025716,2]
[343244476,1732528242807,-1681.43,0.00025716,2]
[343244478,1732528242820,-528.45,0.00025716,2]
[343244479,1732528242830,-160.0,0.00025752,3]
[343244480,1732528242840,-1502.32,0.00025759,2]
[343244481,1732528242849,-1200.67,0.00025759,2]
[343244482,1732528242860,-1000.0,0.0002579,2]
[343244483,1732528242869,-278.16,0.00025937,2]
[343244484,1732528242879,-8800.3,0.00025937,2]
[343244485,1732528242889,-299.72,0.00025937,2]
[343244486,1732528242898,-500.0,0.00025939,2]
[343244487,1732528242908,-534.87,0.00025939,2]
[343244488,1732528242917,-292.22180591,0.00025939,2]
[343244489,1732528242927,-500.0,0.00025939,2]
[343244490,1732528242936,-500.0,0.00025939,2]
[343244491,1732528242946,-500.0,0.00025958,2]
[343244493,1732528243007,-1076.25,0.00025958,2]
[343244495,1732528243022,-500.0,0.00025958,2]
[343244497,1732528243031,-637.45,0.00025958,2]
[343244499,1732528243041,-500.0,0.00025958,2]
[343244501,1732528243051,-2264.53,0.0002599,2]
[343244503,1732528243060,-1681.43,0.0002599,2]
[343244504,1732528243071,-528.45,0.0002599,2]
[343244505,1732528243081,-151.0,0.0002599,7]
[343244506,1732528243090,-1502.32,0.00026033,2]
[343244507,1732528243100,-1200.67,0.00026033,2]
[343244508,1732528243110,-1454.05917681,0.00026181,2]
[343244509,1732528243120,-8800.3,0.00026211,2]
[343244511,1732528243130,-500.0,0.00026213,2]
[343244512,1732528243140,-534.87,0.00026213,2]
[343244513,1732528243150,-500.0,0.00026213,2]
[343244514,1732528243161,-500.0,0.00026213,2]
[343244515,1732528243170,-151.0,0.00026213,7]
[343244516,1732528243180,-301.090537,0.00026213,7]
[343244517,1732528243190,-301.090537,0.00026213,7]
[343244518,1732528243199,-742.198625,0.00026213,7]
[343244519,1732528243209,-742.198625,0.00026213,7]
[343244520,1732528243218,-500.0,0.00026232,2]
[343244521,1732528243228,-1076.25,0.00026232,2]
[343244522,1732528243238,-500.0,0.00026232,2]
[343244523,1732528243248,-637.45,0.00026232,2]
[343244524,1732528243257,-500.0,0.00026232,2]
[343244525,1732528243267,-2264.53,0.00026264,2]
[343244526,1732528243277,-1681.43,0.00026264,2]
[343244527,1732528243287,-528.45,0.00026264,2]
[343244528,1732528243297,-500.25168427,0.000263,2]
[343244529,1732528243307,-200.04509323,0.000263,2]
[343244530,1732528243319,-1502.32,0.00026307,2]
[343244531,1732528243328,-1200.67,0.00026307,2]
[343244532,1732528243340,-660.0,0.00026384,2]
[343244534,1732528243349,-370.0,0.00026388,2]
[343244535,1732528243359,-8800.3,0.00026485,2]
[343244537,1732528243369,-586.622153,0.00026485,7]
[343244539,1732528243379,-586.622153,0.00026485,7]
[343244540,1732528243388,-500.0,0.00026487,2]
[343244541,1732528243398,-534.87,0.00026487,2]
[343244542,1732528243407,-500.0,0.00026487,2]
[343244543,1732528243416,-500.0,0.00026487,2]
[343244544,1732528243427,-823.0,0.00026487,2]
[343244545,1732528243436,-500.0,0.00026506,2]
[343244546,1732528243446,-1076.25,0.00026506,2]
[343244547,1732528243455,-500.0,0.00026506,2]
[343244548,1732528243465,-637.45,0.00026506,2]
[343244549,1732528243474,-500.0,0.00026506,2]
[343244550,1732528243484,-2264.53,0.00026538,2]
[343244551,1732528243494,-1681.43,0.00026538,2]
[343244552,1732528243503,-528.45,0.00026538,2]
[343244553,1732528243512,-1404.33842731,0.0002655,2]
[343244554,1732528243521,-531.0,0.00026552,2]
[343244555,1732528243530,-1105.0,0.00026552,2]
[343244556,1732528243539,-2379.0,0.00026552,2]
[343244557,1732528243548,-370.0,0.00026581,2]
[343244558,1732528243557,-160.0,0.00026581,2]
[343244559,1732528243568,-1502.32,0.00026581,2]
[343244560,1732528243577,-1200.67,0.00026581,2]
[343244561,1732528243587,-500.0,0.00026584,7]
[343244562,1732528243597,-300.0,0.000267,2]
[343244563,1732528243607,-1454.05917681,0.00026724,2]
[343244564,1732528243616,-160.0,0.00026749,4]
[343244565,1732528243625,-8800.3,0.00026759,2]
[343244566,1732528243635,-500.0,0.00026761,2]
[343244567,1732528243644,-534.87,0.00026761,2]
[343244568,1732528243653,-500.0,0.00026761,2]
[343244569,1732528243663,-500.0,0.00026761,2]
[343244570,1732528243672,-500.0,0.0002678,2]
[343244571,1732528243681,-1076.25,0.0002678,2]
[343244572,1732528243690,-500.0,0.0002678,2]
[343244573,1732528243699,-637.45,0.0002678,2]
[343244574,1732528243709,-500.0,0.0002678,2]
[343244575,1732528243718,-1500.0,0.00026791,2]
[343244576,1732528243731,-33915.16,0.000268,2]
[343244577,1732528243740,-2264.53,0.00026812,2]
[343244578,1732528243751,-1681.43,0.00026812,2]
[343244579,1732528243761,-528.45,0.00026812,2]
[343244580,1732528243771,-1502.32,0.00026855,2]
[343244581,1732528243780,-1200.67,0.00026855,2]
[343244582,1732528243789,-151.0,0.00026855,7]
[343244583,1732528243799,-500.0,0.00026862,2]
[343244584,1732528243811,-500.0,0.00026862,2]
[343244585,1732528243823,-609.17799273,0.00026862,2]
[343244586,1732528243833,-501.73502475,0.00026862,2]
[343244587,1732528243842,-508.73330681,0.00026862,2]
[343244588,1732528243851,-506.46321348,0.00026862,2]
[343244589,1732528243860,-503.31267002,0.00026862,2]
[343244590,1732528243869,-510.98349186,0.00026862,2]
[343244591,1732528243877,-503.28306023,0.00026862,2]
[343244592,1732528243887,-507.71204536,0.00026862,2]
[343244593,1732528243896,-505.10820335,0.00026862,2]
[343244594,1732528243905,-500.0,0.00026862,2]
[343244595,1732528243914,-500.0,0.00026862,2]
[343244596,1732528243924,-501.94791597,0.00026862,2]
[343244597,1732528243934,-536.77,0.00026862,2]
[343244598,1732528243945,-500.0,0.00026862,2]
[343244599,1732528243955,-500.0,0.00026862,2]
[343244600,1732528244014,-500.0,0.00026862,2]
[343244601,1732528244024,-500.0,0.00026862,2]
[343244602,1732528244035,-500.0,0.00026862,2]
[343244603,1732528244044,-500.0,0.00026862,2]
[343244604,1732528244053,-501.83238123,0.00026862,2]
[343244605,1732528244063,-501.76587857,0.00026862,2]
[343244606,1732528244075,-501.57192232,0.00026862,2]
[343244607,1732528244084,-500.0,0.00026862,2]
[343244608,1732528244095,-500.0,0.00026862,2]
[343244609,1732528244104,-506.87986711,0.00026862,2]
[343244610,1732528244113,-505.55317778,0.00026862,2]
[343244611,1732528244122,-605.93598303,0.00026862,2]
[343244612,1732528244131,-500.0,0.00026862,2]
[343244613,1732528244141,-500.0,0.00026862,2]
[343244614,1732528244150,-500.0,0.00026862,2]
[343244615,1732528244160,-506.95332329,0.00026862,2]
[343244616,1732528244169,-500.0,0.00026862,2]
[343244617,1732528244179,-500.0,0.00026862,2]
[343244618,1732528244188,-506.04770223,0.00026862,2]
[343244619,1732528244197,-500.0,0.00026862,2]
[343244620,1732528244206,-500.0,0.00026862,2]
[343244621,1732528244216,-500.0,0.00026862,2]
[343244622,1732528244225,-507.42504834,0.00026862,2]
[343244623,1732528244235,-450.52534337,0.00026862,2]
[343244624,1732528244244,-500.0,0.00026862,2]
[343244625,1732528244253,-508.99584045,0.00026862,2]
[343244626,1732528244262,-500.0,0.00026862,2]
[343244627,1732528244272,-504.00820488,0.00026862,2]
[343244628,1732528244281,-500.0,0.00026862,2]
[343244629,1732528244291,-500.0,0.00026862,2]
[343244630,1732528244300,-500.0,0.00026862,2]
[343244631,1732528244309,-500.0,0.00026862,2]
[343244632,1732528244322,-500.0,0.00026862,2]
[343244633,1732528244331,-500.0,0.00026862,2]
[343244634,1732528244341,-792.41,0.00026862,2]
[343244635,1732528244350,-508.01798971,0.00026862,2]
[343244636,1732528244360,-500.0,0.00026862,2]
[343244637,1732528244369,-849.97,0.00026862,2]
[343244638,1732528244379,-500.0,0.00026862,2]
[343244639,1732528244387,-500.0,0.00026862,2]
[343244640,1732528244397,-500.0,0.00026862,2]
[343244641,1732528244406,-500.0,0.00026862,2]
[343244642,1732528244415,-500.0,0.00026862,2]
[343244643,1732528244424,-500.0,0.00026862,2]
[343244644,1732528244434,-740.17,0.00026862,2]
[343244645,1732528244443,-500.0,0.00026862,2]
[343244646,1732528244453,-500.0,0.00026862,2]
[343244647,1732528244463,-500.0,0.00026862,2]
[343244648,1732528244472,-500.0,0.00026862,2]
[343244649,1732528244481,-273.96129748,0.00026862,2]
[343244650,1732528244491,-427.01848824,0.00026862,2]
[343244651,1732528244501,-613.89,0.00026862,2]
[343244652,1732528244511,-500.0,0.00026862,2]
[343244653,1732528244520,-500.0,0.00026862,2]
[343244654,1732528244530,-500.0,0.00026862,2]
[343244655,1732528244539,-500.0,0.00026862,2]
[343244656,1732528244549,-500.0,0.00026862,2]
[343244657,1732528244558,-500.0,0.00026862,2]
[343244658,1732528244570,-848.16,0.00026862,2]
[343244659,1732528244579,-384.12836852,0.00026862,2]
[343244660,1732528244589,-500.0,0.00026862,2]
[343244661,1732528244598,-500.0,0.00026862,2]
[343244662,1732528244607,-500.0,0.00026862,2]
[343244663,1732528244616,-500.0,0.00026862,2]
[343244664,1732528244625,-500.0,0.00026862,2]
[343244665,1732528244634,-500.0,0.00026862,2]
[343244666,1732528244643,-500.0,0.00026862,2]
[343244667,1732528244653,-617.02417258,0.00026862,2]
[343244668,1732528244663,-500.0,0.00026862,2]
[343244669,1732528244674,-500.0,0.00026862,2]
[343244670,1732528244685,-500.0,0.00026862,2]
[343244671,1732528244697,-500.0,0.00026862,2]
[343244672,1732528244708,-500.0,0.00026862,2]
[343244673,1732528244719,-504.78208817,0.00026862,2]
[343244674,1732528244732,-500.0,0.00026862,2]
[343244675,1732528244742,-499.11787745,0.00026862,2]
[343244676,1732528244751,-500.0,0.00026862,2]
[343244677,1732528244760,-576.16821352,0.00026862,2]
[343244678,1732528244771,-500.0,0.00026862,2]
[343244679,1732528244780,-500.0,0.00026862,2]
[343244680,1732528244789,-514.69227699,0.00026862,2]
[343244681,1732528244798,-507.70273983,0.00026862,2]
[343244682,1732528244808,-768.91,0.00026862,2]
[343244683,1732528244820,-1643.42,0.00026862,2]
[343244684,1732528244828,-500.0,0.00026862,2]
[343244685,1732528244837,-500.0,0.00026862,2]
[343244686,1732528244846,-500.0,0.00026862,2]
[343244687,1732528244855,-500.0,0.00026862,2]
[343244688,1732528244864,-504.14812093,0.00026862,2]
[343244689,1732528244872,-504.31357439,0.00026862,2]
[343244690,1732528244927,-151.0,0.00026862,7]
[343244691,1732528244940,-151.0,0.00026862,7]
[343244692,1732528244949,-500.0,0.00026862,2]
[343244693,1732528244958,-500.0,0.00026862,2]
[343244694,1732528244967,-500.0,0.00026862,2]
[343244695,1732528244976,-500.0,0.00026862,2]
[343244696,1732528244985,-500.0,0.00026862,2]
[343244697,1732528244994,-522.37,0.00026862,2]
[343244698,1732528245003,-151.0,0.00026862,7]
[343244699,1732528245012,-500.0,0.00026862,2]
[343244700,1732528245021,-518.79,0.00026862,2]
[343244701,1732528245030,-500.0,0.00026862,2]
[343244702,1732528245039,-505.54970356,0.00026862,2]
[343244703,1732528245048,-930.62,0.00026862,2]
[343244704,1732528245058,-500.0,0.00026862,2]
[343244705,1732528245069,-500.0,0.00026862,2]
[343244706,1732528245079,-500.0,0.00026862,2]
[343244707,1732528245088,-500.0,0.00026862,2]
[343244708,1732528245097,-500.0,0.00026862,2]
[343244709,1732528245107,-500.0,0.00026862,2]
[343244710,1732528245117,-586.622153,0.00026862,7]
[343244711,1732528245126,-586.622153,0.00026862,7]
[343244712,1732528245136,-500.0,0.00026862,2]
[343244713,1732528245145,-301.090537,0.00026862,7]
[343244714,1732528245154,-503.86363077,0.00026862,2]
[343244715,1732528245164,-500.0,0.00026862,2]
[343244716,1732528245173,-301.090537,0.00026862,7]